fUSD/lending_fUSD_20240515
["ID","MTS","AMOUNT","RATE_DAILY","PERIOD"]
[327053347,1715748644548,-514.04820593,0.00012998,2]
[327053349,1715748644557,-518.00176946,0.00012998,2]
[327053350,1715748644566,-510.39440532,0.00012998,2]
[327053351,1715748644575,-519.77716558,0.00012998,2]
[327053352,1715748644585,-298.41652336,0.00012998,2]
[327053353,1715748644594,-500.64224901,0.00012998,2]
[327053354,1715748644603,-518.75995453,0.00012998,2]
[327053355,1715748644613,-538.56085228,0.00012998,2]
[327053356,1715748644623,-500.0,0.00012998,2]
[327053357,1715748644632,-511.85214382,0.00012998,2]
[327053358,1715748644642,-514.86478258,0.00012998,2]
[327053359,1715748644652,-515.53814113,0.00012998,2]
[327053360,1715748644661,-553.09520369,0.00012998,2]
[327053361,1715748644844,-303.7178474,0.00012998,2]
[327053362,1715748644854,-500.0,0.00012998,2]
[327053363,1715748644866,-500.0,0.00012998,2]
[327053364,1715748644875,-500.0,0.00012998,2]
[327053365,1715748644884,-500.0,0.00012998,2]
[327053366,1715748644894,-513.81075877,0.00012998,2]
[327053367,1715748644903,-500.0,0.00012998,2]
[327053368,1715748644912,-513.38832361,0.00012998,2]
[327053369,1715748644922,-509.59688946,0.00012998,2]
[327053370,1715748644931,-506.45861648,0.00012998,2]
[327053371,1715748644940,-514.28218535,0.00012998,2]
[327053372,1715748644950,-500.0,0.00012998,2]
[327053373,1715748644960,-508.36314016,0.00012998,2]
[327053374,1715748644970,-509.9965296,0.00012998,2]
[327053375,1715748644979,-509.9173498,0.00012998,2]
[327053376,1715748644989,-627.13691685,0.00012998,2]
[327053377,1715748644998,-500.0,0.00012998,2]
[327053378,1715748645008,-500.0,0.00012998,2]
[327053379,1715748645017,-500.0,0.00012998,2]
[327053380,1715748645026,-398.64604727,0.00012998,2]
[327053381,1715748645036,-500.0,0.00012998,2]
[327053382,1715748645045,-515.714117,0.00012998,2]
[327053383,1715748645055,-508.83621767,0.00012998,2]
[327053384,1715748645064,-500.0,0.00012998,2]
[327053385,1715748645074,-189.95,0.00012998,2]
[327053386,1715748645084,-500.0,0.00012998,2]
[327053387,1715748645093,-500.0,0.00012998,2]
[327053388,1715748645102,-500.0,0.00012998,2]
[327053389,1715748645112,-500.0,0.00012998,2]
[327053390,1715748645122,-500.0,0.00012998,2]
[327053391,1715748645132,-373.80511927,0.00012998,2]
[327053392,1715748645143,-2155.3,0.00012998,2]
[327053393,1715748645152,-670.18,0.00012998,2]
[327053394,1715748645162,-500.0,0.00012998,2]
[327053395,1715748645171,-2913.16,0.00012998,2]
[327053396,1715748645180,-500.0,0.00012998,2]
[327053397,1715748645190,-500.0,0.00012998,2]
[327053398,1715748645199,-500.0,0.00012998,2]
[327053399,1715748645209,-627.86064002,0.00012998,2]
[327053400,1715748645218,-507.60167728,0.00012998,2]
[327053401,1715748645227,-500.0,0.00012998,2]
[327053402,1715748645237,-500.0,0.00012998,2]
[327053403,1715748645246,-269.22608946,0.00012998,2]
[327053404,1715748645255,-500.0,0.00012998,2]
[327053405,1715748645265,-199.71019508,0.00012998,2]
[327053406,1715748645274,-500.0,0.00012998,2]
[327053407,1715748645284,-512.28132884,0.00012998,2]
[327053408,1715748645294,-500.0,0.00012998,2]
[327053409,1715748645303,-500.0,0.00012998,2]
[327053410,1715748645313,-510.10642418,0.00012998,2]
[327053411,1715748645322,-48697.68832642,0.00012999,2]
[327053412,1715748645332,-2000.0,0.00012999,2]
[327053413,1715748645341,-200.0,0.00012999,2]
[327053414,1715748645350,-500.0,0.00012999,2]
[327053415,1715748645360,-514.40589041,0.00012999,2]
[327053416,1715748645370,-511.07888865,0.00012999,2]
[327053417,1715748645379,-508.28252114,0.00012999,2]
[327053418,1715748645388,-151.0,0.00012999,2]
[327053419,1715748645398,-166.317275,0.00012999,2]
[327053420,1715748645407,-151.0,0.00012999,2]
[327053421,1715748645417,-151.0,0.00012999,2]
[327053422,1715748645426,-151.0,0.00012999,2]
[327053423,1715748645435,-168.038105,0.00012999,2]
[327053424,1715748645445,-524.2917779,0.00012999,2]
[327053425,1715748645459,-151.0,0.00012999,2]
[327053426,1715748645469,-223.294594,0.00012999,2]
[327053427,1715748645479,-151.0,0.00012999,2]
[327053428,1715748645489,-151.0,0.00012999,2]
[327053429,1715748645498,-151.0,0.00012999,2]
[327053430,1715748645508,-226.043876,0.00012999,2]
[327053431,1715748645517,-151.0,0.00012999,2]
[327053432,1715748645527,-161.494285,0.00012999,2]
[327053433,1715748645538,-151.0,0.00012999,2]
[327053434,1715748645549,-151.0,0.00012999,2]
[327053435,1715748645558,-231.4363051,0.00012999,2]
[327053436,1715748645567,-151.0,0.00012999,2]
[327053437,1715748645577,-287.104781,0.00012999,2]
[327053438,1715748645586,-500.0,0.00012999,2]
[327053439,1715748645596,-515.17216843,0.00012999,2]
[327053440,1715748645606,-500.0,0.00012999,2]
[327053441,1715748645616,-151.0,0.00012999,2]
[327053442,1715748645626,-151.0,0.00012999,2]
[327053443,1715748645635,-219.506413,0.00012999,2]
[327053444,1715748645644,-156.75726,0.00012999,2]
[327053445,1715748645653,-219.13317711,0.00012999,2]
[327053446,1715748645662,-152.951666,0.00012999,2]
[327053447,1715748645672,-151.377872,0.00012999,2]
[327053448,1715748645681,-175.850214,0.00012999,2]
[327053449,1715748645690,-175.850214,0.00012999,2]
[327053450,1715748645699,-175.850214,0.00012999,2]
[327053451,1715748645709,-175.850214,0.00012999,2]
[327053452,1715748645718,-500.0,0.00012999,2]
[327053453,1715748645729,-151.0,0.00012999,2]
[327053454,1715748645738,-151.0,0.00012999,2]
[327053455,1715748645748,-500.0,0.00012999,2]
[327053456,1715748645758,-500.0,0.00012999,2]
[327053457,1715748645767,-223.49030613,0.00012999,2]
[327053458,1715748645776,-151.0,0.00012999,2]
[327053459,1715748645786,-151.0,0.00012999,2]
[327053460,1715748645795,-2463.148909,0.00012999,2]
[327053461,1715748645804,-151.0,0.00012999,2]
[327053462,1715748645813,-2463.148909,0.00012999,2]
[327053463,1715748645822,-2463.148909,0.00012999,2]
[327053464,1715748645831,-500.0,0.00012999,2]
[327053465,1715748645840,-500.0,0.00012999,2]
[327053466,1715748645849,-2463.148909,0.00012999,2]
[327053467,1715748645858,-500.0,0.00012999,2]
[327053468,1715748645867,-2463.148909,0.00012999,2]
[327053469,1715748645878,-500.0,0.00012999,2]
[327053470,1715748645888,-301.81,0.00012999,2]
[327053471,1715748645898,-2463.148909,0.00012999,2]
[327053472,1715748645908,-500.0,0.00012999,2]
[327053473,1715748645917,-205.949892,0.00012999,2]
[327053474,1715748645929,-500.0,0.00012999,2]
[327053475,1715748645939,-205.949892,0.00012999,2]
[327053476,1715748645950,-500.0,0.00012999,2]
[327053477,1715748645960,-205.949892,0.00012999,2]
[327053478,1715748645969,-500.0,0.00012999,2]
[327053479,1715748645979,-500.0,0.00012999,2]
[327053480,1715748645988,-500.0,0.00012999,2]
[327053481,1715748645997,-500.0,0.00012999,2]
[327053482,1715748646007,-431.9189629,0.00012999,2]
[327053483,1715748646016,-500.0,0.00012999,2]
[327053484,1715748646025,-500.0,0.00012999,2]
[327053485,1715748646035,-151.0,0.00012999,2]
[327053486,1715748646044,-500.0,0.00012999,2]
[327053487,1715748646054,-154.93029,0.00012999,2]
[327053488,1715748646063,-500.0,0.00012999,2]
[327053489,1715748646073,-500.0,0.00012999,2]
[327053490,1715748646082,-298.78,0.00012999,2]
[327053491,1715748646091,-500.0,0.00012999,2]
[327053492,1715748646101,-500.0,0.00012999,2]
[327053493,1715748646111,-500.0,0.00012999,2]
[327053494,1715748646120,-500.0,0.00012999,2]
[327053495,1715748646129,-205.949892,0.00012999,2]
[327053496,1715748646139,-205.949892,0.00012999,2]
[327053497,1715748646149,-205.949892,0.00012999,2]
[327053498,1715748646158,-500.0,0.00012999,2]
[327053499,1715748646167,-500.0,0.00012999,2]
[327053500,1715748646177,-500.0,0.00012999,2]
[327053501,1715748646186,-500.0,0.00012999,2]
[327053502,1715748646195,-500.0,0.00012999,2]
[327053503,1715748646205,-500.0,0.00012999,2]
[327053504,1715748646215,-500.0,0.00012999,2]
[327053505,1715748646224,-500.0,0.00012999,2]
[327053506,1715748646234,-500.0,0.00012999,2]
[327053507,1715748646244,-500.0,0.00012999,2]
[327053508,1715748646254,-500.0,0.00012999,2]
[327053509,1715748646264,-397.51402375,0.00012999,2]
[327053510,1715748646274,-500.0,0.00012999,2]
[327053511,1715748646284,-500.0,0.00012999,2]
[327053512,1715748646295,-500.0,0.00012999,2]
[327053513,1715748646306,-500.0,0.00012999,2]
[327053514,1715748646316,-500.0,0.00012999,2]
[327053515,1715748646327,-500.0,0.00012999,2]
[327053516,1715748646336,-567.16,0.00012999,2]
[327053517,1715748646346,-151.0,0.00012999,2]
[327053518,1715748646357,-151.0,0.00012999,2]
[327053519,1715748646370,-151.0,0.00012999,2]
[327053520,1715748646381,-151.0,0.00012999,2]
[327053521,1715748646390,-151.0,0.00012999,2]
[327053522,1715748646401,-151.0,0.00012999,2]
[327053523,1715748646411,-2155.3,0.00012999,2]
[327053524,1715748646420,-2155.3,0.00012999,2]
[327053525,1715748646430,-2155.3,0.00012999,2]
[327053526,1715748646439,-2155.3,0.00012999,2]
[327053527,1715748646451,-2155.3,0.00012999,2]
[327053528,1715748646464,-2155.3,0.00012999,2]
[327053529,1715748646474,-2155.3,0.00012999,2]
[327053530,1715748646485,-2155.3,0.00012999,2]
[327053531,1715748646494,-2155.3,0.00012999,2]
[327053532,1715748646504,-400.564425,0.00012999,2]
[327053533,1715748646513,-2155.3,0.00012999,2]
[327053534,1715748646522,-400.564425,0.00012999,2]
[327053535,1715748646531,-2155.3,0.00012999,2]
[327053536,1715748646540,-400.564425,0.00012999,2]
[327053537,1715748646551,-2155.3,0.00012999,2]
[327053538,1715748646560,-151.0,0.00012999,2]
[327053539,1715748646570,-2155.3,0.00012999,2]
[327053540,1715748646579,-224.119648,0.00012999,2]
[327053541,1715748646589,-2155.3,0.00012999,2]
[327053542,1715748646598,-670.18,0.00012999,2]
[327053543,1715748646607,-2155.3,0.00012999,2]
[327053544,1715748646619,-670.18,0.00012999,2]
[327053545,1715748646629,-2155.3,0.00012999,2]
[327053546,1715748646638,-670.18,0.00012999,2]
[327053547,1715748646647,-2155.3,0.00012999,2]
[327053548,1715748646656,-670.18,0.00012999,2]
[327053549,1715748646665,-2155.3,0.00012999,2]
[327053550,1715748646675,-2155.3,0.00012999,2]
[327053551,1715748646685,-670.18,0.00012999,2]
[327053552,1715748646695,-154.051479,0.00012999,2]
[327053553,1715748646704,-2155.3,0.00012999,2]
[327053554,1715748646714,-670.18,0.00012999,2]
[327053555,1715748646724,-2155.3,0.00012999,2]
[327053556,1715748646733,-2155.4910445,0.00012999,2]
[327053557,1715748646743,-670.18,0.00012999,2]
[327053558,1715748646752,-670.18,0.00012999,2]
[327053559,1715748646761,-670.18,0.00012999,2]
[327053560,1715748646770,-151.0,0.00012999,2]
[327053561,1715748646780,-670.18,0.00012999,2]
[327053562,1715748646789,-151.0,0.00012999,2]
[327053563,1715748646799,-670.18,0.00012999,2]
[327053564,1715748646808,-670.18,0.00012999,2]
[327053565,1715748646817,-151.0,0.00012999,2]
[327053566,1715748646826,-670.18,0.00012999,2]
[327053567,1715748646835,-670.18,0.00012999,2]
[327053568,1715748646845,-400.564425,0.00012999,2]
[327053569,1715748646855,-670.18,0.00012999,2]
[327053570,1715748646867,-400.564425,0.00012999,2]
[327053571,1715748646876,-670.18,0.00012999,2]
[327053572,1715748646885,-500.0,0.00012999,2]
[327053573,1715748646894,-670.18,0.00012999,2]
[327053574,1715748646904,-400.564425,0.00012999,2]
[327053575,1715748646914,-670.18,0.00012999,2]
[327053576,1715748646923,-276.11327664,0.00012999,2]
[327053577,1715748646932,-670.18,0.00012999,2]
[327053578,1715748646942,-670.18,0.00012999,2]
[327053579,1715748646951,-670.18,0.00012999,2]
[327053580,1715748646960,-670.28083891,0.00012999,2]
[327053581,1715748646969,-2913.16,0.00012999,2]
[327053582,1715748646979,-2913.16,0.00012999,2]
[327053583,1715748646988,-2913.16,0.00012999,2]
[327053584,1715748646997,-2913.16,0.00012999,2]
[327053585,1715748647007,-2913.16,0.00012999,2]
[327053586,1715748647016,-2913.16,0.00012999,2]
[327053587,1715748647025,-2913.16,0.00012999,2]
[327053588,1715748647034,-2913.16,0.00012999,2]
[327053589,1715748647044,-151.0,0.00012999,2]
[327053590,1715748647054,-151.0,0.00012999,2]
[327053591,1715748647063,-2913.16,0.00012999,2]
[327053592,1715748647072,-151.0,0.00012999,2]
[327053593,1715748647082,-2913.16,0.00012999,2]
[327053594,1715748647091,-2913.16,0.00012999,2]
[327053595,1715748647100,-2913.16,0.00012999,2]
[327053596,1715748647110,-2913.16,0.00012999,2]
[327053597,1715748647121,-500.0,0.00012999,2]
[327053598,1715748647130,-2913.16,0.00012999,2]
[327053599,1715748647139,-500.0,0.00012999,2]
[327053600,1715748647148,-2913.16,0.00012999,2]
[327053601,1715748647157,-500.0,0.00012999,2]
[327053602,1715748647166,-2913.16,0.00012999,2]
[327053603,1715748647176,-500.0,0.00012999,2]
[327053604,1715748647185,-2913.16,0.00012999,2]
[327053605,1715748647194,-500.0,0.00012999,2]
[327053606,1715748647203,-2913.16,0.00012999,2]
[327053607,1715748647212,-500.0,0.00012999,2]
[327053608,1715748647221,-2913.16,0.00012999,2]
[327053609,1715748647230,-500.0,0.00012999,2]
[327053610,1715748647240,-2913.16,0.00012999,2]
[327053611,1715748647251,-649.62,0.00012999,2]
[327053612,1715748647261,-2913.16,0.00012999,2]
[327053613,1715748647271,-2913.33538049,0.00012999,2]
[327053614,1715748647281,-151.0,0.00012999,2]
[327053615,1715748647290,-153.553799,0.00012999,2]
[327053616,1715748647299,-151.0,0.00012999,2]
[327053617,1715748647309,-151.0,0.00012999,2]
[327053618,1715748647318,-160.414807,0.00012999,2]
[327053619,1715748647327,-151.0,0.00012999,2]
[327053620,1715748647336,-165.118539,0.00012999,2]
[327053621,1715748647345,-152.697705,0.00012999,2]
[327053622,1715748647354,-151.0,0.00012999,2]
[327053623,1715748647365,-151.0,0.00012999,2]
[327053624,1715748647374,-151.0,0.00012999,2]
[327053625,1715748647383,-500.0,0.00012999,2]
[327053626,1715748647393,-500.0,0.00012999,2]
[327053627,1715748647405,-500.0,0.00012999,2]
[327053628,1715748647414,-500.0,0.00012999,2]
[327053629,1715748647423,-500.0,0.00012999,2]
[327053630,1715748647433,-500.0,0.00012999,2]
[327053631,1715748647443,-151.0,0.00012999,2]
[327053632,1715748647458,-500.0,0.00012999,2]
[327053633,1715748647469,-500.0,0.00012999,2]
[327053634,1715748647479,-500.0,0.00012999,2]
[327053635,1715748647488,-151.0,0.00012999,2]
[327053636,1715748647500,-500.0,0.00012999,2]
[327053637,1715748647510,-500.0,0.00012999,2]
[327053638,1715748647519,-339.01367862,0.00012999,2]
[327053639,1715748647529,-232.745155,0.00012999,2]
[327053640,1715748647539,-500.0,0.00012999,2]
[327053641,1715748647549,-500.0,0.00012999,2]
[327053642,1715748647558,-500.0,0.00012999,2]
[327053643,1715748647567,-206.86663655,0.00012999,2]
[327053644,1715748647576,-500.0,0.00012999,2]
[327053645,1715748647585,-500.0,0.00012999,2]
[327053646,1715748647594,-151.0,0.00012999,2]
[327053647,1715748647603,-324.18616105,0.00012999,2]
[327053648,1715748647614,-151.0,0.00012999,2]
[327053649,1715748647623,-151.0,0.00012999,2]
[327053650,1715748647632,-500.0,0.00012999,2]
[327053651,1715748647640,-500.0,0.00012999,2]
[327053652,1715748647649,-500.0,0.00012999,2]
[327053653,1715748647658,-167.98501161,0.00012999,2]
[327053654,1715748647668,-155.187979,0.00012999,2]
[327053655,1715748647678,-573.23106981,0.00012999,2]
[327053656,1715748647687,-282.00189826,0.00012999,2]
[327053657,1715748647696,-500.0,0.00012999,2]
[327053658,1715748647705,-279230.48444715,0.00013,2]
[327053659,1715748647715,-596809.13698458,0.00013,2]
[327053660,1715748647724,-500.0,0.00013,2]
[327053661,1715748647733,-500.0,0.00013,2]
[327053662,1715748647744,-500.0,0.00013,2]
[327053663,1715748647753,-500.0,0.00013,2]
[327053664,1715748647762,-500.0,0.00013,2]
[327053665,1715748647771,-500.0,0.00013,2]
[327053666,1715748647780,-500.0,0.00013,2]
[327053667,1715748647789,-500.0,0.00013,2]
[327053668,1715748647798,-500.0,0.00013,2]
[327053669,1715748647807,-500.0,0.00013,2]
[327053670,1715748647817,-500.0,0.00013,2]
[327053671,1715748647826,-500.0,0.00013,2]
[327053672,1715748647835,-500.0,0.00013,2]
[327053673,1715748647844,-500.0,0.00013,2]
[327053674,1715748647854,-500.0,0.00013,2]
[327053675,1715748647864,-500.0,0.00013,2]
[327053676,1715748647873,-500.0,0.00013,2]
[327053677,1715748647882,-500.0,0.00013,2]
[327053678,1715748647891,-500.0,0.00013,2]
[327053679,1715748647900,-500.0,0.00013,2]
[327053680,1715748647910,-500.0,0.00013,2]
[327053681,1715748647918,-500.0,0.00013,2]
[327053682,1715748647928,-500.0,0.00013,2]
[327053683,1715748647937,-500.0,0.00013,2]
[327053684,1715748647946,-500.0,0.00013,2]
[327053685,1715748647955,-500.0,0.00013,2]
[327053686,1715748647964,-500.0,0.00013,2]
[327053687,1715748647974,-500.0,0.00013,2]
[327053688,1715748647983,-500.0,0.00013,2]
[327053689,1715748647992,-500.0,0.00013,2]
[327053690,1715748648002,-500.0,0.00013,2]
[327053691,1715748648011,-500.0,0.00013,2]
[327053692,1715748648020,-500.0,0.00013,2]
[327053693,1715748648030,-500.0,0.00013,2]
[327053694,1715748648040,-500.0,0.00013,2]
[327053695,1715748648049,-500.0,0.00013,2]
[327053696,1715748648058,-500.0,0.00013,2]
[327053697,1715748648068,-500.0,0.00013,2]
[327053698,1715748648078,-500.0,0.00013,2]
[327053699,1715748648088,-500.0,0.00013,2]
[327053700,1715748648096,-500.0,0.00013,2]
[327053701,1715748648106,-500.0,0.00013,2]
[327053702,1715748648116,-500.0,0.00013,2]
[327053703,1715748648125,-500.0,0.00013,2]
[327053704,1715748648135,-500.0,0.00013,2]
[327053705,1715748648145,-500.0,0.00013,2]
[327053706,1715748648154,-500.0,0.00013,2]
[327053707,1715748648165,-500.0,0.00013,2]
[327053708,1715748648175,-500.0,0.00013,2]
[327053709,1715748648184,-500.0,0.00013,2]
[327053710,1715748648193,-500.0,0.00013,2]
[327053711,1715748648202,-500.0,0.00013,2]
[327053712,1715748648211,-500.0,0.00013,2]
[327053713,1715748648220,-500.0,0.00013,2]
[327053714,1715748648229,-500.0,0.00013,2]
[327053715,1715748648238,-500.0,0.00013,2]
[327053716,1715748648247,-500.0,0.00013,2]
[327053717,1715748648257,-500.0,0.00013,2]
[327053718,1715748648268,-500.0,0.00013,2]
[327053719,1715748648277,-695.0,0.00013,2]
[327053720,1715748648286,-19168.59792716,0.00013,2]
[327053721,1715748648378,-232.62092505,0.00012997,2]
[327053722,1715748648387,-155.183609,0.00012999,2]
[327053723,1715748648396,-107.93046595,0.00012999,2]
[327053735,1715749624874,-1500.0,9.949e-05,2]
[327053749,1715749832518,-151.76,9.949e-05,2]
[327053751,1715749832528,-200.0,0.00011,2]
[327053753,1715749832537,-1105.86574935,0.00011785,2]
[327053754,1715749832549,-1204.03608552,0.00011785,2]
[327053755,1715749832560,-766.78816513,0.00011785,2]
[327053756,1715749832570,-250.0,0.00011789,2]
[327053757,1715749832579,-243.79,0.00011795,2]
[327053758,1715749832588,-1000.0,0.00011883,2]
[327053759,1715749832597,-183.81,0.00011934,2]
[327053760,1715749832608,-150.0,0.0001196,2]
[327053761,1715749832617,-170.54,0.00012117,2]
[327053762,1715749832626,-150.0,0.000122,2]
[327053763,1715749832636,-150.0,0.000122,2]
[327053764,1715749832645,-162.7,0.000122,2]
[327053765,1715749832654,-351.52,0.000122,2]
[327053766,1715749832664,-150.0,0.000122,2]
[327053767,1715749832673,-150.0,0.000122,2]
[327053768,1715749832682,-351.52,0.000122,2]
[327053769,1715749832691,-523.61,0.000122,2]
[327053770,1715749832700,-351.52,0.000122,2]
[327053771,1715749832710,-150.0,0.000122,2]
[327053772,1715749832720,-1651.76,0.00012213,2]
[327053773,1715749832733,-163.33,0.000123,2]
[327053774,1715749832743,-150.0,0.000123,2]
[327053775,1715749832752,-351.52,0.000123,2]
[327053776,1715749832762,-167.28,0.00012345,2]
[327053777,1715749832771,-1745.94,0.00012358,4]
[327053778,1715749832781,-499.99,0.00012358,2]
[327053779,1715749832790,-420.4,0.000124,2]
[327053780,1715749832800,-564.57,0.000125,2]
[327053781,1715749832810,-186.77,0.000125,2]
[327053782,1715749832820,-422.48,0.000125,2]
[327053784,1715749832829,-1047.0,0.00012695,2]
[327053786,1715749832840,-204.9967921,0.00012754,2]
[327053788,1715749832853,-523.66,0.000128,2]
[327053790,1715749832865,-420.44,0.000128,2]
[327053792,1715749832875,-150.0,0.000128,2]
[327053794,1715749832886,-351.56,0.000128,2]
[327053796,1715749832896,-257.03291376,0.00012869,2]
[327053798,1715749832905,-500.0,0.00012876,2]
[327053800,1715749832915,-500.0,0.00012885,2]
[327053802,1715749832927,-500.0,0.00012893,2]
[327053804,1715749832937,-500.0,0.00012895,2]
[327053806,1715749832946,-500.0,0.00012902,2]
[327053808,1715749832956,-500.0,0.00012911,2]
[327053810,1715749832966,-500.0,0.0001292,2]
[327053812,1715749832975,-500.0,0.00012929,2]
[327053813,1715749832984,-916.24223787,0.00012929,2]
[327053815,1715749832994,-500.0,0.00012937,2]
[327053817,1715749833004,-500.0,0.00012946,2]
[327053819,1715749833013,-500.0,0.00012955,2]
[327053821,1715749833023,-500.0,0.00012964,2]
[327053823,1715749833032,-500.0,0.00012973,2]
[327053824,1715749833041,-170.84,0.0001298,2]
[327053826,1715749833052,-500.0,0.00012981,2]
[327053828,1715749833061,-150.0,0.00012984,2]
[327053830,1715749833070,-500.0,0.00012988,2]
[327053832,1715749833080,-408.34836646,0.00012988,2]
[327053834,1715749833089,-457.56672882,0.00012988,2]
[327053836,1715749833099,-1445.24581942,0.00012989,2]
[327053838,1715749833110,-373.94089372,0.00012989,2]
[327053840,1715749833119,-500.0,0.00012989,2]
[327053842,1715749833130,-500.0,0.00012989,2]
[327053844,1715749833140,-500.0,0.00012989,2]
[327053846,1715749833150,-500.0,0.00012989,2]
[327053848,1715749833160,-500.0,0.00012989,2]
[327053850,1715749833170,-500.0,0.00012989,2]
[327053852,1715749833179,-500.0,0.00012989,2]
[327053854,1715749833189,-250000.0,0.0001299,2]
[327053856,1715749833200,-170.84,0.0001299,2]
[327053858,1715749833210,-170.84,0.0001299,2]
[327053860,1715749833220,-170.84,0.0001299,2]
[327053862,1715749833231,-170.84,0.0001299,2]
[327053864,1715749833242,-151.81,0.0001299,2]
[327053866,1715749833253,-151.81,0.0001299,2]
[327053868,1715749833264,-151.81,0.0001299,2]
[327053870,1715749833276,-151.81,0.0001299,2]
[327053872,1715749833287,-151.81,0.0001299,2]
[327053874,1715749833298,-151.81,0.0001299,2]
[327053876,1715749833309,-151.81,0.0001299,2]
[327053878,1715749833318,-151.81,0.0001299,2]
[327053880,1715749833329,-151.81,0.0001299,2]
[327053882,1715749833339,-151.81,0.0001299,2]
[327053884,1715749833350,-151.81,0.0001299,2]
[327053886,1715749833370,-151.81,0.0001299,2]
[327053888,1715749833381,-151.81,0.0001299,2]
[327053890,1715749833393,-151.81,0.0001299,2]
[327053892,1715749833404,-151.81,0.0001299,2]
[327053894,1715749833415,-151.81,0.0001299,2]
[327053896,1715749833426,-151.81,0.0001299,2]
[327053898,1715749833440,-151.81,0.0001299,2]
[327053900,1715749833450,-151.81,0.0001299,2]
[327053902,1715749833461,-151.81,0.0001299,2]
[327053904,1715749833472,-151.81,0.0001299,2]
[327053906,1715749833482,-151.81,0.0001299,2]
[327053908,1715749833493,-151.81,0.0001299,2]
[327053910,1715749833503,-151.81,0.0001299,2]
[327053912,1715749833513,-151.81,0.0001299,2]
[327053914,1715749833523,-151.81,0.0001299,2]
[327053916,1715749833533,-151.81,0.0001299,2]
[327053917,1715749833544,-151.81,0.0001299,2]
[327053919,1715749833556,-151.81,0.0001299,2]
[327053922,1715749833566,-151.81,0.0001299,2]
[327053924,1715749833578,-151.81,0.0001299,2]
[327053926,1715749833588,-151.81,0.0001299,2]
[327053927,1715749833597,-151.81,0.0001299,2]
[327053929,1715749833613,-151.81,0.0001299,2]
[327053931,1715749833623,-151.81,0.0001299,2]
[327053933,1715749833633,-151.81,0.0001299,2]
[327053935,1715749833643,-151.81,0.0001299,2]
[327053937,1715749833653,-151.81,0.0001299,2]
[327053939,1715749833664,-151.81,0.0001299,2]
[327053941,1715749833674,-151.81,0.0001299,2]
[327053943,1715749833684,-151.81,0.0001299,2]
[327053945,1715749833694,-151.81,0.0001299,2]
[327053947,1715749833704,-151.81,0.0001299,2]
[327053949,1715749833714,-151.81,0.0001299,2]
[327053951,1715749833723,-151.81,0.0001299,2]
[327053953,1715749833732,-151.81,0.0001299,2]
[327053955,1715749833742,-151.81,0.0001299,2]
[327053957,1715749833752,-151.81,0.0001299,2]
[327053959,1715749833763,-151.81,0.0001299,2]
[327053961,1715749833773,-151.81,0.0001299,2]